bitfinex-derivatives/quotes_SOLF0:USTF0_20241230
["timestamp","ask_amount","ask_price","bid_price","bid_amount"]
[1735576421662,3.76,187.54,187.41,19.70373576]
[1735576423663,2.6715,187.53,187.48,2.672]
[1735576424059,3.76,187.54,187.41,19.70373576]
[1735576424255,3.76,187.54,187.39,7.41390365]
[1735576424658,3.76,187.54,187.43,19.70373576]
[1735576424862,3.76,187.54,187.44,3.76]
[1735576425562,2.6714,187.53,187.48,2.672]
[1735576425861,19.70373576,187.5,187.39,47.2588207]
[1735576426761,19.70373576,187.5,187.34,8.97720365]
[1735576426762,1.5372,187.49,187.34,8.97720365]
[1735576426967,3.76,187.48,187.34,7.41390365]
[1735576427160,6.9144,187.48,187.34,7.41390365]
[1735576427364,2.6727,187.44,187.38,2.6735]
[1735576427667,19.70373576,187.47,187.34,7.41390365]
[1735576427867,2.6734,187.39,187.34,10.08790365]
[1735576428074,2.6734,187.39,187.31,114.17727308]
[1735576428075,3.76,187.41,187.31,29.50850168]
[1735576428263,3.76,187.4,187.31,29.50850168]
[1735576428572,2.6736,187.38,187.31,32.18290168]
[1735576428779,3.76,187.4,187.31,29.50850168]
[1735576428968,3.76,187.4,187.28,3.1969]
[1735576429469,2.6738,187.37,187.32,2.6743]
[1735576431464,2.6738,187.37,187.33,2.6742]
[1735576431665,19.70373576,187.44,187.29,19.70373576]
[1735576431867,3.76,187.41,187.29,21.21353576]
[1735576432361,3.76,187.43,187.29,21.21353576]
[1735576432765,19.70373576,187.42,187.29,1.5098]
[1735576432966,19.70373576,187.42,187.28,1.5677]
[1735576433167,1.5471,187.41,187.26,27.11763941]
[1735576433469,1.5471,187.41,187.31,2.6744]
[1735576433470,2.674,187.36,187.31,2.6744]
[1735576433663,2.674,187.36,187.27,7.41390365]
[1735576433970,2.674,187.36,187.26,19.70373576]
[1735576434167,2.6742,187.34,187.29,2.6747]
[1735576434467,3.76,187.37,187.25,7.41390365]
[1735576434966,2.6738,187.36,187.25,7.41390365]
[1735576435165,3.76,187.37,187.24,1.5633]
[1735576435669,2.674,187.35,187.24,1.5633]
[1735576436467,2.674,187.35,187.31,2.6745]
[1735576436963,3.76,187.37,187.24,1.5633]
[1735576437164,5.3352,187.37,187.27,2.675]
[1735576437463,5.3352,187.37,187.24,1.5633]
[1735576437658,5.3352,187.37,187.28,2.6748]
[1735576437859,5.3352,187.37,187.24,1.5633]
[1735576438062,2.6743,187.33,187.24,1.5633]
[1735576438266,5.3352,187.37,187.27,2.6751]
[1735576438461,2.6743,187.33,187.23,22.74223576]
[1735576439171,2.6741,187.34,187.23,22.74223576]
[1735576439871,2.6741,187.34,187.29,2.6747]
[1735576440066,5.3352,187.37,187.23,22.74223576]
[1735576440373,19.70373576,187.36,187.21,1.5289]
[1735576440575,2.6748,187.3,187.25,2.6754]
[1735576441277,2.6749,187.29,187.25,2.6754]
[1735576441474,3.76,187.31,187.18,3.0747]
[1735576442774,3.76,187.31,187.2,19.70373576]
[1735576442973,2.6748,187.29,187.25,2.6753]
[1735576443473,2.6748,187.29,187.2,19.70373576]
[1735576443474,2.675,187.28,187.23,2.6755]
[1735576443873,2.675,187.28,187.18,3.0747]
[1735576444067,3.76,187.31,187.18,3.0747]
[1735576444267,3.76,187.31,187.2,19.70373576]
[1735576444776,6.4346,187.31,187.23,2.6756]
[1735576444972,6.4346,187.31,187.2,19.70373576]
[1735576445570,3.76,187.31,187.2,19.70373576]
[1735576446873,3.76,187.31,187.18,3.0747]
[1735576447475,2.6751,187.27,187.24,2.6755]
[1735576447679,3.76,187.31,187.24,2.6755]
[1735576447874,3.76,187.31,187.18,3.0747]
[1735576448076,2.6749,187.29,187.25,2.6754]
[1735576448778,3.76,187.31,187.25,2.6754]
[1735576449071,2.675,187.28,187.25,2.6754]
[1735576449468,2.675,187.28,187.18,3.0747]
[1735576449672,2.675,187.28,187.24,2.6755]
[1735576451077,2.6753,187.26,187.18,3.0747]
[1735576451271,21.23593576,187.3,187.14,19.70373576]
[1735576451483,19.70373576,187.27,187.11,26.61433576]
[1735576451680,2.676,187.21,187.11,22.85433576]
[1735576451981,3.76,187.23,187.11,22.85433576]
[1735576452175,2.6761,187.2,187.16,2.6766]
[1735576452378,3.76,187.23,187.11,3.1506]
[1735576452579,1.5469,187.22,187.11,3.1506]
[1735576452779,2.6764,187.18,187.14,2.6768]
[1735576453381,2.6764,187.18,187.15,2.6768]
[1735576453979,3.1684,187.22,187.11,1.6024]
[1735576454185,3.1684,187.22,186.96,182.42695771]
[1735576454186,2.6768,187.15,187.05,19.70373576]
[1735576454887,6.3565,187.17,187.05,19.70373576]
[1735576455278,3.68,187.17,187.05,19.70373576]
[1735576456189,6.3566,187.17,187.12,2.6771]
[1735576456687,6.3566,187.17,187.13,2.6771]
[1735576457388,6.3566,187.17,187.05,19.70373576]
[1735576457389,3.68,187.17,187.05,19.70373576]
[1735576457986,2.677,187.14,187.11,2.6773]
[1735576458386,16.04828396,187.17,187.05,12.36828396]
[1735576458889,3.68,187.17,187.08,12.36828396]
[1735576459090,3.68,187.17,187.1,2.6774]
[1735576459289,3.68,187.17,187.08,12.36828396]
[1735576459792,3.68,187.17,187.14,2.6769]
[1735576460291,6.3565,187.17,187.13,2.6771]
[1735576460492,3.68,187.17,187.05,12.36828396]
[1735576461487,2.6772,187.13,187.09,2.6776]
[1735576461993,16.04828396,187.17,187.05,12.36828396]
[1735576462190,2.677,187.14,187.11,2.6774]
[1735576462492,16.04828396,187.17,187.05,12.36828396]
[1735576462690,2.6772,187.13,187.09,2.6776]
[1735576462884,16.04828396,187.17,187.05,12.36828396]
[1735576463494,2.677,187.14,187.1,2.6774]
[1735576463795,2.677,187.14,187.05,12.36828396]
[1735576464294,6.3566,187.17,187.05,12.36828396]
[1735576464489,3.68,187.17,187.05,12.36828396]
[1735576464695,3.68,187.17,187.12,2.6772]
[1735576464989,3.68,187.17,187.05,12.36828396]
[1735576466093,6.3566,187.17,187.14,2.6769]
[1735576466297,3.68,187.18,187.08,12.36828396]
[1735576466498,3.68,187.19,187.08,12.36828396]
[1735576467399,6.3562,187.19,187.16,2.6766]
[1735576467792,3.68,187.19,187.08,12.36828396]
[1735576468901,2.6766,187.17,187.14,2.6769]
[1735576470395,2.6766,187.17,187.08,12.36828396]
[1735576470396,3.68,187.19,187.08,12.36828396]
[1735576470701,2.6764,187.18,187.15,2.6768]
[1735576472506,13.89428396,187.2,187.08,19.78218761]
[1735576472696,2.6763,187.19,187.08,12.36828396]
[1735576473205,2.6763,187.19,187.11,2.6773]
[1735576473406,2.6763,187.19,187.08,12.36828396]
[1735576473807,2.6763,187.19,187.09,4.43344733]
[1735576474009,2.6763,187.19,187.16,2.6766]
[1735576474206,2.6764,187.18,187.09,4.43344733]
[1735576474404,17.57428396,187.2,187.09,4.43344733]
[1735576474603,2.6767,187.17,187.09,7.41390365]
[1735576475409,2.6767,187.17,187.14,2.6769]
[1735576476806,17.57428396,187.2,187.15,2.6768]
[1735576477118,3.1684,187.22,187.08,19.78218761]
[1735576477119,6.8484,187.22,187.11,12.36828396]
[1735576477802,6.8484,187.22,187.1,29.50850168]
[1735576477803,12.36828396,187.2,187.1,29.50850168]
[1735576478309,2.6767,187.16,187.13,2.6771]
[1735576478512,2.6767,187.16,187.1,29.50850168]
[1735576478905,2.6766,187.17,187.14,2.6769]
[1735576479211,12.36828396,187.2,187.09,7.41390365]
[1735576479510,12.36828396,187.2,187.12,2.6772]
[1735576479511,2.6769,187.15,187.12,2.6772]
[1735576480305,1.6261,187.19,187.11,2.6773]
[1735576481011,2.6767,187.16,187.13,2.677]
[1735576482212,2.6766,187.17,187.15,2.6768]
[1735576482611,1.6261,187.19,187.09,29.50850168]
[1735576482805,2.6763,187.19,187.16,2.6766]
[1735576483410,3.68,187.2,187.16,2.6766]
[1735576483611,2.6764,187.18,187.16,2.6766]
[1735576486616,12.36828396,187.18,187.11,7.41390365]
[1735576486812,12.36828396,187.12,187.11,7.41390365]
[1735576487018,15.92828396,187.12,187.1,19.54069168]
[1735576487220,2.6774,187.11,187.1,19.54069168]
[1735576488018,2.6777,187.1,187.06,2.6781]
[1735576488417,15.92828396,187.12,187.05,58.75294074]
[1735576488615,15.92828396,187.12,187.05,61.43114074]
[1735576489113,15.92828396,187.12,187.05,2.6782]
[1735576489319,2.6778,187.09,187.05,2.6782]
[1735576489518,2.6778,187.09,187.06,2.6781]
[1735576493223,15.92828396,187.12,187.02,17.6773767]
[1735576493418,15.92828396,187.12,187.05,2.6782]
[1735576493419,2.6777,187.09,187.05,2.6782]
[1735576493616,15.92828396,187.12,187.0,60.26304074]
[1735576493817,12.36828396,187.09,187.0,58.75294074]
[1735576494821,2.6781,187.06,187.02,2.6786]
[1735576495512,1.6358,187.17,187.03,12.36828396]
[1735576495719,1.6358,187.17,187.06,12.36828396]
[1735576496227,2.6771,187.14,187.1,2.6775]
[1735576496515,3.56,187.14,186.93,114.37294074]
[1735576496720,12.36828396,187.12,186.99,12.36828396]
[1735576496917,1.6314,187.11,186.99,71.1212247]
[1735576497617,1.6314,187.11,186.99,12.36828396]
[1735576498013,2.6781,187.06,187.02,2.6786]
[1735576499723,3.56,187.08,186.96,12.36828396]
[1735576500020,2.6784,187.05,187.01,2.6788]
[1735576500633,3.56,187.08,186.95,4.6595]
[1735576500926,5.1204,187.08,186.96,12.36828396]
[1735576501125,12.36828396,187.06,186.93,97.57308291]
[1735576501318,5.1204,187.08,186.96,2.6795]
[1735576501319,2.6791,187.0,186.96,2.6795]
[1735576501622,3.56,187.01,186.93,97.57308291]
[1735576502020,2.6792,186.99,186.95,2.6796]
[1735576502222,3.56,187.01,186.93,85.20479895]
[1735576502623,2.6794,186.98,186.94,2.6797]
[1735576502824,3.56,187.01,186.93,85.20479895]
[1735576503024,15.44798396,187.0,186.86,97.57308291]
[1735576503320,2.6798,186.95,186.91,2.6802]
[1735576503527,3.56,186.96,186.89,12.36828396]
[1735576503727,3.56,186.96,186.92,2.68]
[1735576503925,3.56,186.96,186.87,4.7077]
[1735576504523,15.92828396,186.96,186.9,2.6803]
[1735576504724,15.92828396,186.96,186.83,12.36828396]
[1735576505126,15.92828396,186.96,186.87,2.6807]
[1735576505322,15.92828396,186.96,186.83,12.36828396]
[1735576505323,12.36828396,186.93,186.81,76.35086099]
[1735576505528,1.6104,186.92,186.81,88.71914495]
[1735576505725,3.56,186.91,186.81,88.71914495]
[1735576506524,3.56,186.91,186.81,12.36828396]
[1735576506726,12.36828396,186.9,186.81,12.36828396]
[1735576506927,13.93118396,186.9,186.78,13.87478396]
[1735576507228,13.93118396,186.9,186.74,62.31294074]
[1735576507229,12.36828396,186.8,186.74,58.75294074]
[1735576507430,3.56,186.79,186.74,58.75294074]
[1735576507828,3.56,186.79,186.71,58.75294074]
[1735576508028,3.56,186.79,186.73,12.36828396]
[1735576508229,3.56,186.84,186.76,12.36828396]
[1735576508426,3.56,186.88,186.79,12.36828396]
[1735576509123,3.56,186.88,186.82,12.36828396]
[1735576509530,3.56,186.88,186.84,2.6811]
[1735576509723,3.56,186.88,186.79,12.36828396]
[1735576510331,3.56,186.88,186.84,2.6811]
[1735576510732,3.56,186.88,186.79,12.36828396]
[1735576511228,3.56,186.88,186.8,1.4777]
[1735576511424,3.56,186.88,186.86,2.6808]
[1735576511633,3.56,186.94,186.85,12.36828396]
[1735576512028,3.56,186.94,186.9,2.6803]
[1735576512427,3.56,186.94,186.85,12.36828396]
[1735576512933,3.56,186.94,186.87,2.6807]
[1735576513130,3.56,186.94,186.85,12.36828396]
[1735576513431,3.56,186.94,186.87,2.6807]
[1735576513636,3.56,186.94,186.85,12.36828396]
[1735576514029,3.1569,186.98,186.85,12.36828396]
[1735576514228,3.56,186.97,186.85,12.36828396]
[1735576514626,12.36828396,186.96,186.85,12.36828396]
[1735576515033,2.6798,186.95,186.89,2.6805]
[1735576515829,12.36828396,186.96,186.89,2.6805]
[1735576516028,12.36828396,186.93,186.8,1.4777]
[1735576516338,12.36828396,186.9,186.8,1.4777]
[1735576516536,3.68,186.89,186.8,1.4777]
[1735576517537,2.6808,186.88,186.83,2.6814]
[1735576517737,6.3608,186.88,186.83,2.6814]
[1735576518039,3.68,186.88,186.77,1.5457]
[1735576519539,12.36828396,186.83,186.73,1.5578]
[1735576519840,16.04828396,186.83,186.73,1.5578]
[1735576520033,2.6817,186.81,186.76,2.6824]
[1735576520231,2.6817,186.81,186.73,1.5578]
[1735576520635,2.6817,186.81,186.77,2.6822]
[1735576522637,2.6815,186.82,186.77,2.6822]
[1735576522945,2.6815,186.82,186.73,1.5578]
[1735576523144,2.6815,186.82,186.78,2.6821]
[1735576523645,16.04828396,186.83,186.8,2.6817]
[1735576523847,3.68,186.83,186.8,2.6817]
[1735576524645,12.36828396,186.86,186.74,16.04828396]
[1735576524943,12.36828396,186.86,186.77,12.36828396]
[1735576525142,15.04928396,186.86,186.79,2.6819]
[1735576525344,12.36828396,186.86,186.74,12.36828396]
[1735576525745,2.6812,186.85,186.8,2.6817]
[1735576525946,12.36828396,186.86,186.8,2.6817]
[1735576526853,2.6814,186.84,186.8,2.6817]
[1735576527751,12.36828396,186.86,186.74,12.36828396]
[1735576528044,1.6022,186.92,186.82,12.36828396]
[1735576528250,12.36828396,186.95,186.85,12.36828396]
[1735576528449,2.6799,186.94,186.9,2.6803]
[1735576528649,12.36828396,186.95,186.9,2.6803]
[1735576528847,2.68,186.93,186.89,2.6805]
[1735576529854,2.68,186.93,186.85,12.36828396]
[1735576530051,2.68,186.93,186.9,2.6804]
[1735576530457,2.6798,186.94,186.9,2.6804]
[1735576532253,12.36828396,186.95,186.85,12.36828396]
[1735576532254,2.6802,186.92,186.85,12.36828396]
[1735576532853,2.6802,186.92,186.88,2.6806]
[1735576533052,12.36828396,186.95,186.85,12.36828396]
[1735576533250,3.68,186.96,186.85,12.36828396]
[1735576533655,2.6798,186.95,186.85,12.36828396]
[1735576533856,3.68,186.96,186.85,12.36828396]
[1735576534260,2.68,186.93,186.89,2.6804]
[1735576534855,2.68,186.93,186.9,2.6804]
[1735576535262,3.68,186.96,186.85,12.36828396]
[1735576535955,2.6798,186.94,186.85,12.36828396]
[1735576536153,3.68,186.96,186.85,12.36828396]
[1735576537562,2.6801,186.93,186.89,2.6805]
[1735576538963,2.6803,186.91,186.85,12.36828396]
[1735576539457,2.6803,186.91,186.86,2.6809]
[1735576539658,2.6803,186.91,186.85,12.36828396]
[1735576540261,12.36828396,186.89,186.83,22.08049931]
[1735576540562,12.36828396,186.86,186.83,22.08049931]
[1735576540763,2.6813,186.84,186.83,22.08049931]
[1735576541265,2.6814,186.83,186.79,2.682]
[1735576541560,2.6814,186.83,186.75,22.08049931]
[1735576541561,3.68,186.85,186.75,22.08049931]
[1735576541863,2.6813,186.84,186.79,2.6818]
[1735576542266,2.6813,186.84,186.74,22.08049931]
[1735576542966,2.6816,186.82,186.77,2.6822]
[1735576543265,2.6816,186.82,186.75,44.13550609]
[1735576543668,2.6816,186.82,186.78,2.682]
[1735576544264,2.6816,186.82,186.74,22.08049931]
[1735576544459,2.6816,186.82,186.79,2.682]
[1735576544863,3.68,186.85,186.74,22.08049931]
[1735576545067,2.6814,186.84,186.8,2.6817]
[1735576545770,2.6814,186.83,186.8,2.6817]
[1735576546566,3.68,186.85,186.73,34.44878327]
[1735576546963,2.6819,186.8,186.77,2.6821]
[1735576547165,12.36828396,186.83,186.73,34.44878327]
[1735576547564,2.6819,186.8,186.73,34.44878327]
[1735576548263,12.36828396,186.83,186.75,2.6825]
[1735576548470,3.0812,186.82,186.75,2.6825]
[1735576548869,3.0812,186.82,186.7,19.80410766]
[1735576549168,12.36828396,186.8,186.7,19.80410766]
[1735576549469,3.0812,186.82,186.73,12.36828396]
[1735576549962,3.66,186.84,186.73,12.36828396]
[1735576550163,3.66,186.84,186.81,2.6817]
[1735576550368,3.66,186.84,186.76,12.36828396]
[1735576550770,2.6815,186.83,186.76,12.36828396]
[1735576551167,3.66,186.84,186.76,12.36828396]
[1735576551869,6.3413,186.84,186.8,2.6817]
[1735576552367,2.6798,186.95,186.84,2.6811]
[1735576552567,2.6798,186.95,186.79,16.02828396]
[1735576552568,16.02828396,186.94,186.82,12.36828396]
[1735576553166,2.6807,186.89,186.85,2.6811]
[1735576553570,16.02828396,186.94,186.85,2.6811]
[1735576553871,16.02828396,186.94,186.84,2.6812]
[1735576554264,12.36828396,186.91,186.77,3.0704]
[1735576554462,2.6812,186.85,186.77,3.0704]
[1735576554867,2.6812,186.85,186.81,2.6816]
[1735576558981,2.6812,186.85,186.82,2.6815]
[1735576559477,2.681,186.86,186.8,2.6818]
[1735576559679,2.681,186.86,186.78,12.36828396]
[1735576560070,2.681,186.86,186.82,2.6814]
[1735576560469,3.0221,186.9,186.81,12.36828396]
[1735576560668,12.36828396,186.93,186.81,12.36828396]
[1735576561074,2.6801,186.92,186.88,2.6806]
[1735576561287,1.626,186.95,186.84,12.36828396]
[1735576561579,2.6799,186.94,186.85,3.66]
[1735576561778,12.36828396,186.96,186.85,3.66]
[1735576562474,2.6799,186.94,186.9,2.6803]
[1735576562971,12.36828396,186.99,186.87,12.36828396]
[1735576563178,2.6794,186.97,186.87,12.36828396]
[1735576563472,1.5845,187.01,186.9,12.36828396]
[1735576563671,1.5845,187.01,186.91,3.66]
[1735576564182,89.44797325,187.11,186.93,12.36828396]
[1735576564383,2.6784,187.05,187.0,2.6788]
[1735576566886,12.36828396,187.1,186.97,3.66]
[1735576567080,12.36828396,187.1,186.99,12.36828396]
[1735576567276,4.7561,187.11,187.02,12.36828396]
[1735576567476,3.1179,187.11,187.02,12.36828396]
[1735576567673,1.5162,187.18,187.05,12.36828396]
[1735576567974,16.56088396,187.18,187.05,12.36828396]
[1735576568173,16.56088396,187.18,187.03,3.66]
[1735576568174,15.04468396,187.18,187.08,12.36828396]
[1735576568382,12.36828396,187.18,187.08,16.02828396]
[1735576568580,2.6763,187.19,187.14,2.6769]
[1735576568770,12.36828396,187.18,187.05,12.36828396]
[1735576568975,3.66,187.2,187.04,1.5703]
[1735576568976,12.36828396,187.15,187.04,1.5703]
[1735576569282,2.6771,187.14,187.08,2.6777]
[1735576569484,2.6771,187.14,187.04,1.5703]
[1735576569982,2.6772,187.13,187.07,2.678]
[1735576570283,12.36828396,187.15,187.04,1.5703]
[1735576570680,1.5382,187.17,187.1,2.6775]
[1735576570881,1.4794,187.19,187.09,12.36828396]
[1735576571083,3.66,187.2,187.16,2.6766]
[1735576571279,1.5843,187.22,187.12,12.36828396]
[1735576572087,3.1085,187.28,187.15,12.36828396]
[1735576572379,3.1085,187.28,187.18,12.36828396]
[1735576572787,3.1085,187.28,187.21,2.676]
[1735576572788,2.6751,187.27,187.21,2.676]
[1735576572981,3.1085,187.28,187.21,2.676]
[1735576573781,3.1085,187.28,187.18,12.36828396]
[1735576574089,1.6291,187.28,187.18,12.36828396]
[1735576574387,5.1665,187.3,187.25,2.6753]
[1735576574887,1.5136,187.36,187.22,19.76286834]
[1735576575087,1.5136,187.36,187.3,2.6747]
[1735576576084,1.5136,187.36,187.23,5.1131]
[1735576576388,1.5136,187.36,187.22,21.38746834]
[1735576576389,19.76286834,187.35,187.22,1.6246]
[1735576576692,19.76286834,187.35,187.24,2.6755]
[1735576579089,19.76286834,187.35,187.25,2.6753]
[1735576579287,19.76286834,187.35,187.2,19.76286834]
[1735576579884,19.76286834,187.35,187.25,2.6753]
[1735576580188,19.76286834,187.35,187.2,19.76286834]
[1735576580489,19.76286834,187.35,187.26,2.6752]
[1735576582190,1.5136,187.36,187.2,19.76286834]
[1735576582487,5.1136,187.36,187.24,19.76286834]
[1735576582687,1.5136,187.36,187.27,2.675]
[1735576582887,1.5136,187.36,187.24,23.36286834]
[1735576583391,75.44286834,187.43,187.32,2.6743]
[1735576583591,3.6,187.42,187.27,19.76286834]
[1735576583792,3.6,187.42,187.28,4.5877]
[1735576583989,3.6,187.42,187.29,3.6]
[1735576584590,3.6,187.42,187.33,2.6742]
[1735576585491,3.1457,187.44,187.3,19.76286834]
[1735576585687,1.5264,187.44,187.33,19.76286834]
[1735576585991,1.5264,187.44,187.34,3.6]
[1735576586383,2.6728,187.43,187.38,2.6734]
[1735576586786,2.6728,187.43,187.34,3.6]
[1735576587187,1.5171,187.46,187.42,2.6729]
[1735576587188,2.6724,187.46,187.42,2.6729]
[1735576587388,3.6,187.52,187.39,19.76286834]
[1735576587587,3.6,187.52,187.39,23.36286834]
[1735576588188,1.6068,187.55,187.43,19.76286834]
[1735576588381,3.6,187.58,187.44,3.6]
[1735576588886,19.76286834,187.6,187.49,2.6719]
[1735576588887,2.6713,187.54,187.49,2.6719]
[1735576589083,3.6,187.59,187.46,19.76286834]
[1735576589784,19.76286834,187.63,187.46,19.76286834]
[1735576589989,3.6,187.62,187.49,19.76286834]
[1735576590191,3.6,187.62,187.55,2.6711]
[1735576590598,2.6702,187.62,187.55,2.6711]
[1735576590891,8.2002,187.64,187.55,2.6711]
[1735576591796,8.2002,187.64,187.48,1.6035]
[1735576591797,19.76286834,187.63,187.48,1.6035]
[1735576591991,19.76286834,187.63,187.48,5.2035]
[1735576592390,2.6712,187.55,187.49,2.672]
[1735576593291,3.6,187.59,187.48,5.2035]
[1735576593491,2.6709,187.57,187.51,2.6716]
[1735576593889,2.6709,187.57,187.52,2.6715]
[1735576594097,3.6,187.59,187.48,5.2035]
[1735576594289,3.6,187.63,187.48,5.2035]
[1735576595198,2.6705,187.59,187.48,5.2035]
[1735576596396,2.6705,187.59,187.54,2.6712]
[1735576597189,2.671,187.56,187.51,2.6716]
[1735576597387,8.2002,187.64,187.47,21.31146834]
[1735576597388,3.6,187.59,187.47,21.31146834]
[1735576597898,6.2705,187.59,187.54,2.6712]
[1735576598097,3.6,187.63,187.5,3.6]
[1735576599498,4.6002,187.64,187.5,3.6]
[1735576599499,4.6002,187.64,187.52,19.76286834]
[1735576599997,7.2701,187.64,187.59,2.6705]
[1735576600596,5.7729,187.64,187.59,2.6705]
[1735576600989,3.103,187.64,187.6,2.6703]
[1735576601595,3.103,187.64,187.58,2.6705]
[1735576601789,3.103,187.64,187.52,19.76286834]
[1735576602491,2.6703,187.61,187.56,2.6708]
[1735576602892,2.6703,187.61,187.52,19.76286834]
[1735576604089,3.103,187.64,187.52,19.76286834]
[1735576604298,2.6704,187.6,187.55,2.671]
[1735576604495,3.103,187.64,187.47,21.31146834]
[1735576604699,2.6711,187.56,187.51,2.6716]
[1735576604999,3.52,187.6,187.51,2.6716]
[1735576605391,2.6711,187.56,187.51,2.6716]
[1735576605695,3.52,187.6,187.51,2.6716]
[1735576606101,3.52,187.6,187.44,19.76286834]
[1735576606305,3.52,187.6,187.47,19.76286834]
[1735576606599,2.671,187.56,187.51,2.6715]
[1735576606899,3.52,187.6,187.51,2.6715]
[1735576607094,3.52,187.6,187.47,19.76286834]
[1735576607398,3.52,187.6,187.44,19.76286834]
[1735576607603,19.76286834,187.58,187.44,19.76286834]
[1735576607796,2.6717,187.52,187.44,19.76286834]
[1735576607996,2.6717,187.52,187.47,2.6722]
[1735576609004,2.6715,187.52,187.47,2.6722]
[1735576609306,2.6715,187.52,187.44,19.76286834]
[1735576609797,3.52,187.54,187.44,19.76286834]
[1735576610001,5.1012,187.57,187.47,19.76286834]
[1735576610204,3.52,187.59,187.47,23.28286834]
[1735576610398,3.52,187.6,187.5,19.76286834]
[1735576610699,3.52,187.6,187.56,2.6709]
[1735576611096,2.6704,187.6,187.56,2.6709]
[1735576611498,3.52,187.62,187.5,19.76286834]
[1735576611703,3.52,187.66,187.53,19.76286834]
[1735576611904,6.5785,187.66,187.53,23.28286834]
[1735576612702,6.5785,187.66,187.53,19.76286834]
[1735576612896,19.76286834,187.64,187.5,19.76286834]
[1735576613102,19.76286834,187.64,187.5,29.16629975]
[1735576613303,19.76286834,187.64,187.52,2.6714]
[1735576613505,19.76286834,187.64,187.5,29.16629975]
[1735576614198,19.76286834,187.61,187.5,29.16629975]
[1735576614395,3.52,187.6,187.47,29.16629975]
[1735576614596,2.6717,187.52,187.48,2.6721]
[1735576614800,3.52,187.54,187.48,2.6721]
[1735576615397,3.52,187.54,187.51,2.6716]
[1735576616304,3.52,187.54,187.49,2.6719]
[1735576616502,3.52,187.54,187.47,29.16629975]
[1735576616904,1.5921,187.59,187.47,48.92916809]
[1735576617207,3.52,187.58,187.48,19.76286834]
[1735576617408,4.2627,187.59,187.55,2.671]
[1735576617608,2.6706,187.59,187.55,2.671]
[1735576618210,2.6706,187.59,187.56,2.6709]
[1735576618911,3.52,187.62,187.51,7.29157494]
[1735576619611,3.52,187.62,187.53,29.16629975]
[1735576620520,19.76286834,187.61,187.53,29.16629975]
[1735576620706,3.52,187.62,187.53,31.83759975]
[1735576620904,3.52,187.62,187.53,29.16629975]
[1735576621114,1.5414,187.65,187.51,19.76286834]
[1735576621412,3.52,187.64,187.54,19.76286834]
[1735576621809,1.5414,187.65,187.54,19.76286834]
[1735576622116,3.52,187.64,187.54,19.76286834]
[1735576622313,3.52,187.64,187.56,87.49889926]
[1735576622507,2.6704,187.61,187.58,2.6706]
[1735576622812,3.52,187.64,187.56,87.49889926]
[1735576624209,2.6701,187.63,187.58,2.6707]
[1735576624414,3.52,187.64,187.56,87.49889926]
[1735576624817,2.6701,187.62,187.58,2.6705]
[1735576625413,2.67,187.63,187.59,2.6705]
[1735576625617,3.52,187.65,187.57,50.39719041]
[1735576626011,2.6699,187.64,187.6,2.6703]
[1735576626210,2.6699,187.64,187.57,29.16629975]
[1735576626915,2.6699,187.64,187.59,2.6705]
[1735576627114,2.6699,187.64,187.57,29.16629975]
[1735576627413,3.52,187.69,187.57,7.29157494]
[1735576627615,19.76286834,187.68,187.57,7.29157494]
[1735576627812,3.52,187.69,187.57,7.29157494]
[1735576627813,19.76286834,187.65,187.57,7.29157494]
[1735576628011,2.6707,187.58,187.57,7.29157494]
[1735576628212,3.52,187.64,187.58,4.23900603]
[1735576628509,2.6705,187.59,187.58,4.23900603]
[1735576628715,6.1905,187.59,187.58,4.23900603]
[1735576629014,3.52,187.59,187.57,21.87472481]
[1735576629210,2.6707,187.58,187.57,21.87472481]
[1735576629417,3.52,187.59,187.52,7.38457598]